Cogmind - Beta 9.4 @@@ ROGUE MODE // 2020.03.23 @ 18:41:52 Player: Nalzok Result: Destroyed by G-34 Mercenary with Small Laser Performance ------------- Evolutions (1) 500 Regions Visited (3) 600 Robots Destroyed (13) 65 Value Destroyed (422) 422 Prototype IDs (0) 0 Alien Tech Used (0) 0 Bonus (0) 0 TOTAL SCORE: 1587 Bonus ------- None Cogmind --------- Core Integrity 0/400 Matter 300/300 Energy 100/100 System Corruption 0% Temperature Cool (6) Movement Core (600) Ox11 Location -9/Mines Parts ------- > --- POWER (1) -------- (None) > --- PROPULSION (4) --- (None) > --- UTILITY (2) ------ Large Storage Unit Large Storage Unit > --- WEAPON (2) ------- Katana > --- INVENTORY (16) --- Ion Engine Ion Engine Large Storage Unit Melee Analysis Suite Power Shielding Power Shielding Power Shielding Power Shielding Propulsion Shielding Grenade Launcher Grenade Launcher Grenade Launcher Peak State ------------ > --- POWER ------------ Improved Ion Engine > --- PROPULSION ------- Light Treads Aluminum Leg Aluminum Leg Aluminum Leg > --- UTILITY ---------- Large Storage Unit Large Storage Unit > --- WEAPON ----------- Light Assault Rifle Heavy Assault Rifle > --- INVENTORY -------- Ion Engine Ion Engine Ion Engine Large Storage Unit Power Shielding Power Shielding Power Shielding Power Shielding Medium Laser Particle Cannon Light Assault Rifle Grenade Launcher Grenade Launcher Grenade Launcher Grenade Launcher [Rating: 12] Favorites ----------- Power Ion Engine Engine Ion Engine Propulsion Aluminum Leg Treads Light Treads Leg Aluminum Leg Utility Large Storage Unit Storage Large Storage Unit Weapon Light Assault Rifle Energy Gun Medium Laser Energy Cannon Particle Cannon Ballistic Gun Light Assault Rifle Launcher Grenade Launcher Slashing Weapon Katana Build | -11 -10 -9 -9 ------- Run | Scr Mat Mat Min Slots Evolved 2 | . . 2 . Power . | . . . . Propulsion 2 | . . 2 . Utility . | . . . . Weapon . | . . . . Parts Attached 13 | . 2 8 3 Power 2 | . . 1 1 Engine 2 | . . 1 1 Core . | . . . . Reactor . | . . . . Propulsion 4 | . . 4 . Treads 1 | . . 1 . Leg 3 | . . 3 . Wheel . | . . . . Hover . | . . . . Flight . | . . . . Utility 2 | . 2 . . Device . | . . . . Storage 2 | . 2 . . Processor . | . . . . Hackware . | . . . . Protection . | . . . . Artifact . | . . . . Weapon 5 | . . 3 2 Energy Gun 1 | . . 1 . Energy Cannon 1 | . . 1 . Ballistic Gun 1 | . . 1 . Ballistic Cannon . | . . . . Launcher 1 | . . . 1 Special Weapon . | . . . . Impact Weapon . | . . . . Slashing Weapon 1 | . . . 1 Piercing Weapon . | . . . . Special Melee Weapon . | . . . . Unidentified Prototypes . | . . . . Parts Lost 13 | . . 11 2 Power 2 | . . 1 1 Propulsion 6 | . . 6 . Utility . | . . . . Weapon 5 | . . 4 1 Highest Loss Streak 8 | . . 8 2 Average Slot Usage (%) 67 | . 97 76 49 Engine 11 | . 14 9 10 Leg 13 | . 28 24 . Storage 22 | . 25 22 22 Ballistic Gun 11 | . 28 18 . Launcher 5 | . . . 10 Slashing Weapon 3 | . . . 6 Naked Turns . | . . . . Heaviest Build 43 | 11 39 43 42 Greatest Support 30 | 20 20 30 3 Greatest Overweight (x) 13 | . 1 11 13 Average Overweight (x) 3 | . . 1 12 Largest Inventory Capacity 16 | 6 16 16 16 Average Capacity 15 | 6 12 16 16 Most Carried 16 | 5 5 16 14 Average Carried 10 | 4 3 13 12 Final Capacity 16 | 6 16 16 16 Final Carried 14 | 2 5 14 12 Class Distribution -------------------- 100% | Mutant Dominant Class ---------------- Mutant | -10/Materials Mutant | -9/Materials Mutant | -9/Mines Resources | -11 -10 -9 -9 ----------- Run | Scr Mat Mat Min Matter Collected 445 | 200 52 138 55 Remotely . | . . . . Salvage Created 571 | . 186 265 120 Parts 25 | . 4 17 4 Haulers Intercepted . | . . . . Recyclers Shooed . | . . . . Parts Field Recycled . | . . . . Retrieved Matter . | . . . . Parts Self-Destructed . | . . . . Prevented . | . . . . Kills | -11 -10 -9 -9 ------- Run | Scr Mat Mat Min Combat Hostiles Destroyed 10 | . 2 6 2 Melee 1 | . . . 1 Guns 7 | . 2 5 . Cannons 1 | . . 1 . AOE 1 | . . . 1 Classes Destroyed 5 | . 2 2 1 Worker 2 | . . . 2 Recycler 1 | . 1 . . Grunt 6 | . 2 2 2 Duelist 2 | . . 2 . Sentry 2 | . . 2 . Best Kill Streak 3 | . 3 2 1 Combat Bots Only 2 | . 2 2 1 Max Kills in Single Turn 1 | . 1 1 1 Gunslinging . | . . . . Exploded 1 | . . . 1 Melee 1 | . . . 1 Uniques/NPCs Destroyed . | . . . . Combat | -11 -10 -9 -9 -------- Run | Scr Mat Mat Min Damage Taken 1900 | . 252 1283 365 Core 481 | . 72 259 150 Absorbed by Shields . | . . . . Core Remaining (%) 85 | 100 71 . . Volleys Fired 54 | . 16 35 3 Largest 2 | . 2 2 1 Hottest 73 | . 40 73 30 Shots Fired 96 | . 32 61 3 Gun 91 | . 32 59 . Cannon 2 | . . 2 . Launcher 3 | . . . 3 Special . | . . . . Kinetic 90 | . 32 58 . Thermal 3 | . . 3 . Explosive 3 | . . . 3 Electromagnetic . | . . . . Robot Hit Streak 8 | . 6 8 4 Robot Miss Streak 2 | . 2 2 . Penetration Max . | . . . . Secondary Targets 1 | . 1 . . Max Gunslinging Chain 1 | . 1 . . Shots Hit Robots 74 | . 21 43 10 Core Hits 32 | . 8 16 8 Critical Hits . | . . . . Critical Kills . | . . . . Critical Parts Destroyed . | . . . . Melee Attacks 7 | . . . 7 Impact . | . . . . Slashing 7 | . . . 7 Piercing . | . . . . Sneak Attacks 3 | . . . 3 Combat Hostiles . | . . . . Follow-up Attacks . | . . . . Damage Inflicted 1263 | . 168 524 571 Guns 671 | . 168 503 . Cannons 21 | . . 21 . Explosions 171 | . . . 171 Melee 400 | . . . 400 Ramming . | . . . . Kinetic 659 | . 168 491 . Thermal 33 | . . 33 . Explosive 171 | . . . 171 Electromagnetic . | . . . . Impact . | . . . . Slashing 400 | . . . 400 Piercing . | . . . . Highest Corruption . | . . . . Average Corruption . | . . . . Corruption Purged . | . . . . Overload Shots . | . . . . Overflow Damage 113 | . . . 113 Projectiles . | . . . . Explosions . | . . . . Melee 113 | . . . 113 Knockbacks . | . . . . Impact . | . . . . Kinetic . | . . . . Secondary . | . . . . Self-Inflicted Damage 30 | . . . 30 Shots 1 | . . . 1 Rammed . | . . . . Targets Rammed . | . . . . Kicked . | . . . . Crushed . | . . . . Highest Temperature 48 | . 24 48 . Average Temperature 10 | . 11 9 . Received Heat Transfer 798 | . 138 477 183 Siege Activations . | . . . . Robots Corrupted . | . . . . Combat Hostiles . | . . . . Parts Fried . | . . . . Impact Corruptions . | . . . . Robots Melted . | . . . . Combat Hostiles . | . . . . Parts Melted . | . . . . Heat Transferred 74 | . . 74 . Parts Sabotaged . | . . . . Parts Stolen . | . . . . Parts Stripped . | . . . . Power Chain Reactions . | . . . . Missiles Intercepted . | . . . . Alert | -11 -10 -9 -9 ------- Run | Scr Mat Mat Min Peak Influence 157 | . 55 157 55 Average Influence 39 | . 9 83 32 Maximum Alert Level . | . . . . Low Security (%) 100 | 100 100 100 100 Level 1 . | . . . . Level 2 . | . . . . Level 3 . | . . . . Level 4 . | . . . . Level 5 . | . . . . High Security . | . . . . Max Security . | . . . . Squads Dispatched 2 | . . 1 1 Investigation . | . . . . Extermination . | . . . . Reinforcement 2 | . . 1 1 Assault . | . . . . Garrison . | . . . . Intercept . | . . . . Construction Impeded 1 | . . . 1 Haulers Reinforced . | . . . . Stealth | -11 -10 -9 -9 --------- Run | Scr Mat Mat Min Distress Signals 1 | . 1 . . Communications Jammed . | . . . . Distress Signals . | . . . . Times Spotted 20 | . 6 11 3 Peak Tracking Total 4 | . 4 4 3 Tactical Retreats . | . . . . Traps | -11 -10 -9 -9 ------- Run | Scr Mat Mat Min Traps Triggered . | . . . . Indirectly . | . . . . Trap Hack Attempts . | . . . . Triggered . | . . . . Disarmed . | . . . . Reprogrammed . | . . . . Reused . | . . . . Traps Extracted . | . . . . Installed . | . . . . Triggered . | . . . . Machines | -11 -10 -9 -9 ---------- Run | Scr Mat Mat Min Machines Disabled . | . . . . Max in Single Turn . | . . . . Machines Sabotaged . | . . . . Garrisons Compromised . | . . . . Overloaded Fab Kills . | . . . . Fab Network Shutdowns . | . . . . Hacking | -11 -10 -9 -9 --------- Run | Scr Mat Mat Min Machines Accessed 2 | . 2 . . Terminals 2 | . 2 . . Fabricators . | . . . . Repair Stations . | . . . . Recycling Units . | . . . . Scanalyzers . | . . . . Garrison Access . | . . . . Total Hacks 6 | . 6 . . Successful 5 | . 5 . . Failed 1 | . 1 . . Catastrophic . | . . . . Database Lockouts . | . . . . Manual 5 | . 5 . . Terminals 6 | . 6 . . Fabricators . | . . . . Repair Stations . | . . . . Recycling Units . | . . . . Scanalyzers . | . . . . Garrison Access . | . . . . Terminal Hacks 1 | . 1 . . Unreport Threat 1 | . 1 . . Fabricator Hacks . | . . . . Repair Station Hacks . | . . . . Recycling Unit Hacks . | . . . . Scanalyzer . | . . . . Garrison Access Hacks . | . . . . Unauthorized Hacks 9 | . 9 . . Terminals 4 | . 4 . . Track 1 | . 1 . . Botnet 2 | . 2 . . Operators 1 | . 1 . . Fabricators . | . . . . Repair Stations . | . . . . Recycling Units . | . . . . Scanalyzers . | . . . . Garrison Access . | . . . . Data Cores Recovered . | . . . . Used . | . . . . Hacking Detections 2 | . 2 . . Full Trace Events . | . . . . Feedback Events . | . . . . Feedback Blocked . | . . . . Robot Schematics Acquired . | . . . . Robots Built . | . . . . Matter . | . . . . Time . | . . . . Total Robot Build Rating . | . . . . Part Schematics Acquired . | . . . . Parts Built . | . . . . Matter . | . . . . Time . | . . . . Total Part Build Rating . | . . . . Parts Repaired . | . . . . Time . | . . . . Parts Recycled . | . . . . Recycled Matter . | . . . . Retrieved Matter . | . . . . Retrieved Components . | . . . . Parts Scanalyzed . | . . . . Part Schematics Acquired . | . . . . Parts Damaged . | . . . . Bothacking | -11 -10 -9 -9 ------------ Run | Scr Mat Mat Min Used RIF Installer . | . . . . Robots Hacked . | . . . . Non-combat . | . . . . Combat . | . . . . Robot Hacks Applied . | . . . . Relay Couplers Released . | . . . . Robots Rewired . | . . . . Allies Hacked . | . . . . Hacks Repelled . | . . . . Allies | -11 -10 -9 -9 -------- Run | Scr Mat Mat Min Total Allies . | . . . . Largest Group . | . . . . Highest-Rated Group . | . . . . Highest-Rated Ally . | . . . . Total Orders . | . . . . Ally Attacks . | . . . . Total Damage . | . . . . Kills . | . . . . Allies Corrupted . | . . . . Allies Melted . | . . . . Intel | -11 -10 -9 -9 ------- Run | Scr Mat Mat Min Robot Analysis Total . | . . . . Derelict Logs Recovered 1 | . . . 1 Drone Launches . | . . . . Drone Recoveries . | . . . . Exploration | -11 -10 -9 -9 ------------- Run | Scr Mat Mat Min Turns Passed 1264 | 2 311 319 632 Spaces Moved 381 | 1 172 121 87 Core 92 | . . 5 87 Treads 1 | . . 1 . Legs 288 | 1 172 115 . Wheels . | . . . . Hover . | . . . . Flight . | . . . . Fastest Speed 120 | 120 120 150 550 Average Speed 278 | 120 142 175 694 Slowest Speed 700 | 120 150 600 700 Overloaded Moves . | . . . . Propulsion Burnouts . | . . . . Robots Hopped . | . . . . Cave-ins Triggered . | . . . . Exploration Rate (%) 20 | 2 42 16 21 Regions Visited 3 Branch Regions 1 Pre-discovered Areas . | . . . . Known Exits Taken . | . . . . Unknown Exits Taken 3 | 1 1 1 . Scrap Searched 1 | . . . 1 Spaces Dug . | . . . . Terrain Destroyed 22 | . . . 22 Melee . | . . . . Projectile . | . . . . AOE 22 | . . . 22 Actions | -11 -10 -9 -9 --------- Run | Scr Mat Mat Min Total 493 | 4 212 175 102 Wait 20 | . 19 . 1 Move 378 | . 171 120 87 Hop . | . . . . Pick Up 15 | . 3 11 1 Fast Attach 4 | . 1 3 . Attach 6 | . . 3 3 Detach . | . . . . Swap 3 | . 1 2 . Drop 6 | 4 1 1 . Fire 54 | . 16 35 3 Melee 7 | . . . 7 Ram . | . . . . Kick . | . . . . Crush . | . . . . Escape Stasis . | . . . . Rewire . | . . . . Trap . | . . . . Miscellaneous . | . . . . Route ------- -11/Scrapyard -10/Materials (discovered 2 exits: [*Mat x2]) -9/Materials -9/Mines History --------- Turn | Location | Event 3 | -11/Scrapyard | Discovered new exit (range 0) 3 | -11/Scrapyard | Entered Materials 96 | -10/Materials | Discovered new exit (range 5) 309 | -10/Materials | Discovered new exit (range 3) 314 | -10/Materials | Entered another Materials area 314 | -9/Materials | Evolved 2 slots: Propulsion x2 316 | -9/Materials | Build established: Mutant 560 | -9/Materials | Lost 3 parts (3n) 571 | -9/Materials | Discovered new exit (range 15) 623 | -9/Materials | Core integrity fell below 50% 633 | -9/Materials | Entered Mines 647 | -9/Mines | Lost 8 parts (1p3n4w) 800 | -9/Mines | Learned Materials emergency access door positions 1249 | -9/Mines | Core integrity fell below 20% 1265 | -9/Mines | Destroyed by G-34 Mercenary with Small Laser Last Messages --------------- 01073_ Destroyed Lgt. Ion Engine. 01073_ Destroyed Wheel. 01074_ K-01 Serf collects debris. 01075_ Destroyed Med. Matter Pod. 01213_ K-01 Serf collects debris. 01225_ G-47 Trooper destroyed. 01225_ ALERT: Construction progress impeded, dispatching reinforcements to local area. 01227_ Grenade Launcher destroyed. 01234_ R-06 Scavenger collects Aluminum Leg. 01242_ Acquired 5 matter. 01245_ Ion Engine destroyed. 01249_ Ion Engine severed. 01251_ G-34 Mercenary destroyed. 01251_ R-06 Scavenger collects Ion Engine. 01252_ U-05 Engineer builds a Wall. 01254_ R-06 Scavenger collects Heat Sink. 01257_ U-05 Engineer builds a Wall. 01260_ U-05 Engineer lays Concrete. 01261_ U-05 Engineer builds a Wall. Map ----- +----------------------------------------------------+ | | | | | | | | | | | | | ??????????????????????????????????????????????? | | ??????????????????????????????????????????????? | | ??????????????????????????????????????????????? | | ??????????????????????????????????????????????? | | ??????????????????????????????????????????????? | | ??????????????????????????????????????????????? | | ??????????????????????????????????????????????? | | ??????????????????????????????????????????????? | | ??????????????????????????????????????????????? | | ??????????????????????????????????????????????? | | ??????????????????#####???????????????????????? | | ??????????????????? #???????????????????????? | | ??????????????????? #???????????????????????? | | ???????????????????# #???????????????????????? | | ???????????????????# #???????????????????????? | | ???????????????????# #?####??????????????????? | | ???????????????????# ### #####??????????????? | | ???????????????????# ## ##????#????????# | | ??????????????????## g """ ###### #??????# | | ?????????????????## @ """ ## #### ?????# | | ?????????????????# """ #### ##?????# | | ?????????????????# %% ### ##????# | | ?????????????????## [ r ### % ##???# | | ??????????????????# # ##### | | ??????????????????## ###### | | ??????????????????##u##???## ## ## ! ! | | ??????????????????## #?????## ### ## ######### | | ???????????????????# #??????####?# ## ######### | | ???????????????????# #??????????## | | ???????????????????# ###?####?### | | ???????????????????# ### ### ######### | | ???????????????????### ## % #???????? | | ?????????????????????# ## ##???????? | | ?????????????????????# ## ##????????? | | ?????????????????????# ## ##?????????? | | ?????????????????????# ##??????????? | | ?????????????????????# ###???????????? | | ???????????????????# ###### ##?????????????? | | ???????????????????# ###????####??????????????? | | ???????????????????# ?????????????????????????? | | ???????????????????#??????????????????????????? | | ??????????????????????????????????????????????? | | ??????????????????????????????????????????????? | | ??????????????????????????????????????????????? | +----------------------------------------------------+ Best States ------------- Heat Dissipation 28 Energy Generation 12 Energy Capacity 265 Matter Stores 300 Matter Capacity 300 Sight Range 16 Terrain Scan Density 10 Evasion (%) 40 Recoil Reduction 1 Item Schematics ----------------- None Robot Schematics ------------------ None Fabricated ------------ Nothing Alien Tech Used ----------------- None Achievements -------------- None Challenges ------------ None Game ------ Seed ShadeMediumTrap Manual? 0 Play Time 00:06:54 Cumulative 237.3 hours Start 2020.03.23 @ 18:36:25 End 2020.03.23 @ 18:41:52 Sessions 1 Manual Loads 0 Difficulty Rogue Special Mode None Game No. 369 Rogue 368 Adventurer 0 Explorer 1 Win Type - Total 1 Types 1/0/0/0/0/0/0 Lore% 65 Gallery% 78 Achievement% 53 Wizard Run 0 Options --------- ASCII 0 Keyboard 1 Movement Vi Keybinds 0 Fullscreen 1 Font 14/Cog Map View 72x52 Tactical HUD 1 Map Filters NONE Filters LOW_CONTRAST(13,24,33) Steam 0 RUN: 2b125be9-b9dd-4e1f-b408-72f9329774ae